bitfinex-derivatives/quotes_SOLF0:USTF0_20250409
["timestamp","ask_amount","ask_price","bid_price","bid_amount"]
[1744166514838,0.0630501,104.0,103.98,59.56959395]
[1744166517141,0.0630501,104.0,103.98,0.06419395]
[1744166517535,9.6247,103.99,103.98,0.06419395]
[1744166517737,0.0630501,104.0,103.98,0.06419395]
[1744166519336,9.6869501,104.0,103.98,0.06419395]
[1744166519532,0.0630501,104.0,103.98,0.06419395]
[1744166520642,9.6247,103.99,103.98,0.06419395]
[1744166520846,0.0630501,104.0,103.98,0.06419395]
[1744166521241,0.0630501,104.0,103.98,9.68939395]
[1744166521745,0.0630501,104.0,103.98,0.06419395]
[1744166522846,0.0630501,104.0,103.99,9.6247]
[1744166523952,0.0630501,104.0,103.98,49.96419395]
[1744166524845,0.0630501,104.0,103.98,0.06419395]
[1744166525852,9.6247,103.99,103.98,0.06419395]
[1744166527257,0.0630501,104.0,103.98,0.06419395]
[1744166528361,9.6873501,104.0,103.98,0.06419395]
[1744166528558,0.0630501,104.0,103.98,0.06419395]
[1744166529057,9.6247,103.99,103.98,0.06419395]
[1744166529961,81.86167826,104.0,103.91,53.73634256]
[1744166530255,9.628,103.96,103.91,53.73634256]
[1744166530462,9.628,103.96,103.93,9.63]
[1744166530759,9.6289,103.95,103.91,53.73634256]
[1744166530958,9.6289,103.95,103.92,9.6307]
[1744166531353,9.6295,103.94,103.91,61.45644256]
[1744166531555,34.38182816,103.98,103.91,49.9]
[1744166531754,0.06684139,103.94,103.91,49.9]
[1744166532761,9.69664139,103.94,103.91,59.5316]
[1744166533156,0.06684139,103.94,103.91,49.9]
[1744166533765,0.06684139,103.94,103.93,9.6303]
[1744166533966,0.06684139,103.94,103.91,49.9]
[1744166534765,0.06684139,103.94,103.93,9.6303]
[1744166535268,4.7588,103.99,103.92,31.89862816]
[1744166535462,12.0619,103.99,103.96,9.6273]
[1744166536264,9.6261,103.98,103.95,9.6283]
[1744166536462,0.07247014,103.99,103.96,0.06684139]
[1744166536661,9.6251,103.99,103.96,9.69394139]
[1744166536864,9.6938705,103.99,103.96,9.69394139]
[1744166537262,0.0687705,103.99,103.96,0.06684139]
[1744166537872,9.6266,103.97,103.96,0.06684139]
[1744166539178,9.6287,103.95,103.92,49.92]
[1744166539371,2.333,103.98,103.92,59.5508]
[1744166539576,34.23162816,103.98,103.88,559.2279]
[1744166539777,9.6309,103.93,103.88,559.2279]
[1744166539980,9.6309,103.93,103.89,9.6332]
[1744166540276,9.6309,103.93,103.88,559.2279]
[1744166540575,0.06185622,103.92,103.9,9.6326]
[1744166540977,9.69325622,103.92,103.88,559.2279]
[1744166541280,0.06185622,103.92,103.88,557.82]
[1744166541467,9.6322,103.91,103.88,557.82]
[1744166541871,0.06185622,103.92,103.88,557.82]
[1744166542275,0.06185622,103.92,103.9,9.6322]
[1744166542578,9.6347,103.89,103.86,189.80895111]
[1744166542986,9.70618777,103.89,103.86,189.80895111]
[1744166543372,0.07148777,103.89,103.86,189.80895111]
[1744166543966,0.07148777,103.89,103.83,81.71862816]
[1744166544278,0.07148777,103.89,103.85,31.89862816]
[1744166544479,0.07148777,103.89,103.88,9.6349]
[1744166544675,0.07148777,103.89,103.88,59.4549]
[1744166545475,4.8492,103.95,103.91,9.6319]
[1744166545684,4.8492,103.95,103.88,49.82]
[1744166546480,14.4783,103.95,103.92,9.6308]
[1744166546677,0.07060491,103.93,103.9,0.06219619]
[1744166546879,0.07060491,103.93,103.88,49.82]
[1744166547183,0.07060491,103.93,103.9,0.06189719]
[1744166547378,0.07060491,103.93,103.91,9.6316]
[1744166548280,0.07060491,103.93,103.92,9.6312]
[1744166548483,0.07060491,103.93,103.91,49.82]
[1744166548984,0.07060491,103.93,103.91,59.4516]
[1744166549384,0.07060491,103.93,103.92,9.6312]
[1744166553385,0.07060491,103.93,103.91,59.4517]
[1744166553687,0.07060491,103.93,103.91,49.82]
[1744166554080,0.07060491,103.93,103.9,0.06189719]
[1744166554686,7.33990491,103.93,103.9,0.06189719]
[1744166555685,9.6321,103.91,103.9,0.06189719]
[1744166556084,16.97100491,103.93,103.9,9.69479719]
[1744166556387,4.80520491,103.93,103.9,0.06189719]
[1744166556584,2.43810491,103.93,103.9,0.06189719]
[1744166556884,0.07060491,103.93,103.91,49.82]
[1744166557285,0.07060491,103.93,103.92,9.6312]
[1744166557987,9.6271,103.97,103.93,9.6297]
[1744166558186,2.3802,103.98,103.93,9.6297]
[1744166558373,9.6282,103.96,103.93,9.6297]
[1744166559187,9.69838581,103.96,103.93,9.7012427]
[1744166560291,9.6288,103.95,103.93,0.0715427]
[1744166560709,9.69798581,103.96,103.93,9.7016427]
[1744166562089,0.07018581,103.96,103.93,0.0715427]
[1744166563691,9.6284,103.95,103.93,0.0715427]
[1744166564189,0.07018581,103.96,103.93,0.0715427]
[1744166567297,0.07018581,103.96,103.94,49.82]
[1744166568196,0.07018581,103.96,103.95,9.6284]
[1744166571002,0.07018581,103.96,103.94,49.82]
[1744166572200,0.07018581,103.96,103.95,9.6284]
[1744166574004,0.07018581,103.96,103.94,49.82]
[1744166576101,0.07018581,103.96,103.95,9.6284]
[1744166578102,0.07018581,103.96,103.94,49.82]
[1744166578802,0.07018581,103.96,103.93,0.0715427]
[1744166579503,4.90538581,103.96,103.93,0.0715427]
[1744166579700,36.80401397,103.96,103.88,49.7]
[1744166579898,2.3433,103.95,103.88,49.7]
[1744166580901,0.06684381,103.93,103.9,0.06163181]
[1744166581106,0.06684381,103.93,103.91,49.7]
[1744166581906,2.3433,103.99,103.91,49.7]
[1744166582107,4.8497,103.99,103.91,81.59862816]
[1744166582902,2.5064,103.99,103.93,31.89862816]
[1744166583104,0.06208608,103.96,103.94,49.76850454]
[1744166583306,2.5008,104.01,103.94,49.7]
[1744166583608,0.07304194,103.96,103.94,49.76687925]
[1744166583806,2.5008,104.01,103.94,49.76335714]
[1744166584009,2.5008,104.01,103.94,49.7]
[1744166584603,52.2008,104.01,103.94,49.7]
[1744166585006,0.06820908,103.99,103.96,0.06445281]
[1744166595705,9.6266,103.97,103.96,0.06445281]
[1744166596101,4.9149,103.98,103.92,49.7]
[1744166596302,9.6288,103.95,103.92,59.3306]
[1744166597211,9.69130321,103.95,103.92,59.40225953]
[1744166597398,9.69130321,103.95,103.93,9.6302]
[1744166597602,9.69130321,103.95,103.92,49.77165953]
[1744166597808,9.6296,103.94,103.92,49.77165953]
[1744166600309,9.6296,103.94,103.92,59.40265953]
[1744166600608,9.69140321,103.95,103.92,59.40265953]
[1744166600809,0.06250321,103.95,103.92,59.40265953]
[1744166601012,0.06250321,103.95,103.93,9.6302]
[1744166601608,9.69110321,103.95,103.92,59.40235953]
[1744166602009,9.69110321,103.95,103.93,9.6303]
[1744166602310,0.06250321,103.95,103.93,9.6303]
[1744166603912,9.69140321,103.95,103.92,59.40235953]
[1744166606513,0.06250321,103.95,103.93,9.6297]
[1744166606705,49.66250321,103.95,103.86,21.68687379]
[1744166606910,51.9274,103.95,103.86,20.01234776]
[1744166607112,51.9274,103.95,103.89,9.6334]
[1744166607307,20.01234776,103.94,103.86,20.01234776]
[1744166607506,22.25804776,103.94,103.85,50.6705]
[1744166607703,9.6345,103.89,103.86,9.6363]
[1744166607903,9.6345,103.89,103.88,0.06298926]
[1744166608103,9.70481104,103.89,103.88,0.06298926]
[1744166608614,0.07031104,103.89,103.88,0.06298926]
[1744166611214,9.70431104,103.89,103.88,0.06298926]
[1744166611514,0.07031104,103.89,103.85,49.6]
[1744166611824,2.36701104,103.89,103.85,49.6]
[1744166612112,9.6363,103.87,103.85,49.6]
[1744166612306,4.79191104,103.89,103.85,49.6]
[1744166612617,9.6359,103.87,103.85,49.6]
[1744166612815,74.4242588,103.89,103.79,180.10093272]
[1744166613015,74.35394776,103.89,103.79,181.33693272]
[1744166613315,0.0652302,103.85,103.82,9.6396]
[1744166613516,0.0652302,103.85,103.81,49.62]
[1744166613818,9.7035302,103.85,103.81,59.2607]
[1744166614219,9.6391,103.84,103.81,59.2607]
[1744166614807,9.7034302,103.85,103.82,9.6404]
[1744166615018,9.7034302,103.85,103.81,49.62]
[1744166615318,9.6391,103.84,103.81,59.2609]
[1744166616514,9.6391,103.84,103.81,49.62]
[1744166616917,0.0652302,103.85,103.81,49.62]
[1744166617120,0.0652302,103.85,103.78,49.64]
[1744166617309,49.64,103.86,103.79,9.6428]
[1744166617513,0.0733409,103.83,103.79,9.6428]
[1744166617922,0.0733409,103.83,103.78,49.64]
[1744166618925,9.6409,103.82,103.79,9.6428]
[1744166619122,0.0733409,103.83,103.78,49.64]
[1744166619728,49.7133409,103.83,103.78,49.64]
[1744166620021,2.4084,103.82,103.78,49.64]
[1744166620218,4.6469,103.82,103.78,49.64]
[1744166620925,14.2879,103.82,103.78,59.2837]
[1744166621425,14.2879,103.82,103.78,49.64]
[1744166621620,14.2879,103.82,103.79,9.6433]
[1744166621833,9.7134409,103.83,103.78,49.64]
[1744166622018,0.0733409,103.83,103.78,49.64]
[1744166622932,9.6411,103.82,103.79,9.6428]
[1744166623225,9.6411,103.82,103.78,49.64]
[1744166623423,9.6411,103.82,103.78,59.2834]
[1744166623620,0.0733409,103.83,103.78,59.2834]
[1744166623923,0.0733409,103.83,103.78,59.284]
[1744166624324,9.6419,103.81,103.78,59.284]
[1744166624524,2.3012,103.84,103.79,9.6432]
[1744166624727,0.06196487,103.81,103.79,9.6432]
[1744166624919,9.70346487,103.81,103.78,49.64]
[1744166625220,0.06196487,103.81,103.78,49.64]
[1744166625724,0.06196487,103.81,103.76,32.07835945]
[1744166625919,0.06196487,103.81,103.75,50.9028]
[1744166626322,9.6434,103.79,103.75,50.9028]
[1744166626532,9.6434,103.79,103.75,50.7985]
[1744166626824,0.07396647,103.78,103.75,50.7985]
[1744166627027,0.07396647,103.78,103.76,9.6457]
[1744166627326,0.07396647,103.78,103.75,50.7985]
[1744166627528,0.07396647,103.78,103.75,60.4448]
[1744166627826,0.07396647,103.78,103.75,50.7985]
[1744166628124,0.07396647,103.78,103.75,49.66]
[1744166628739,0.07396647,103.78,103.72,558.2043]
[1744166629422,0.07396647,103.78,103.72,558.1]
[1744166629621,9.6461,103.76,103.73,9.6484]
[1744166629822,7.0136,103.79,103.73,9.6484]
[1744166630025,0.06546873,103.76,103.73,9.6484]
[1744166630238,0.06546873,103.76,103.74,9.6478]
[1744166630428,0.06546873,103.76,103.72,558.1]
[1744166631328,0.06546873,103.76,103.73,9.6481]
[1744166631540,0.06546873,103.76,103.72,558.1]
[1744166632330,0.06546873,103.76,103.72,81.73835945]
[1744166632535,0.06546873,103.76,103.7,32.07835945]
[1744166632718,7.0136,103.79,103.69,1.1407]
[1744166632927,9.6477,103.75,103.69,1.1407]
[1744166633125,0.07051116,103.74,103.69,50.7007]
[1744166633525,9.71901116,103.74,103.7,9.6508]
[1744166633722,0.07051116,103.74,103.69,49.56]
[1744166634130,9.71921116,103.74,103.69,49.56]
[1744166634338,0.07051116,103.74,103.69,49.56]
[1744166635132,0.07051116,103.74,103.67,9.6536]
[1744166635133,49.63051116,103.74,103.67,9.6536]
[1744166635331,69.66579043,103.74,103.66,49.56]
[1744166635532,0.06747015,103.72,103.67,20.10579043]
[1744166635734,0.06747015,103.72,103.69,20.10579043]
[1744166635936,0.06747015,103.72,103.71,20.10579043]
[1744166636328,0.06747015,103.72,103.7,49.56]
[1744166638236,0.06747015,103.72,103.67,69.66579043]
[1744166638432,9.6522,103.7,103.67,49.56]
[1744166638630,0.06747015,103.72,103.67,49.56]
[1744166638928,69.66579043,103.74,103.67,49.56]
[1744166638929,0.0612593,103.71,103.67,49.56]
[1744166639130,0.0612593,103.71,103.64,50.8225]
[1744166639332,0.0612593,103.71,103.64,49.58]
[1744166639538,9.6533,103.69,103.65,9.6558]
[1744166639827,0.06294822,103.69,103.65,20.10579043]
[1744166640033,0.06294822,103.69,103.64,49.58]
[1744166640231,9.6541,103.68,103.64,49.58]
[1744166640432,0.06294822,103.69,103.63,20.10579043]
[1744166640630,9.71574822,103.69,103.66,9.6549]
[1744166640837,0.06294822,103.69,103.65,20.10579043]
[1744166641240,0.06294822,103.69,103.66,9.6545]
[1744166641538,0.06294822,103.69,103.67,20.10579043]
[1744166641741,9.6493,103.73,103.7,9.6514]
[1744166642128,9.6493,103.73,103.67,20.10579043]
[1744166642332,49.58,103.75,103.66,21.24489043]
[1744166642940,0.068889,103.72,103.69,0.06782605]
[1744166644538,49.648889,103.72,103.63,32.16986735]
[1744166644736,2.2105,103.71,103.62,49.58]
[1744166644939,4.5217,103.71,103.62,49.58]
[1744166645741,0.07009229,103.68,103.62,49.58]
[1744166646036,0.07009229,103.68,103.62,111.58]
[1744166646632,0.07009229,103.68,103.62,49.58]
[1744166647331,0.07009229,103.68,103.6,51.27868599]
[1744166647532,49.6,103.69,103.6,51.27868599]
[1744166647733,0.06944814,103.65,103.62,9.6586]
[1744166647933,0.06944814,103.65,103.6,49.6]
[1744166648441,0.06944814,103.65,103.56,160.08858496]
[1744166648742,9.6596,103.62,103.56,160.08858496]
[1744166648957,0.07280992,103.62,103.56,209.68858496]
[1744166649934,0.07280992,103.62,103.57,32.16986735]
[1744166650132,0.07280992,103.62,103.56,49.6]
[1744166650438,0.07280992,103.62,103.56,81.76986735]
[1744166650641,0.07280992,103.62,103.56,82.91136735]
[1744166650844,0.07280992,103.62,103.58,32.16986735]
[1744166651141,0.07280992,103.62,103.56,50.7415]
[1744166651346,9.73240992,103.62,103.58,9.6623]
[1744166651540,0.07280992,103.62,103.58,9.6623]
[1744166651737,9.73240992,103.62,103.58,9.6623]
[1744166651937,9.73240992,103.62,103.56,50.7415]
[1744166652139,0.07280992,103.62,103.56,50.7415]
[1744166653246,0.07280992,103.62,103.56,82.91136735]
[1744166654149,0.07280992,103.62,103.6,9.66]
[1744166654336,0.07280992,103.62,103.56,82.91136735]
[1744166654535,0.07280992,103.62,103.6,9.6608]
[1744166654736,0.07280992,103.62,103.56,82.91136735]
[1744166655139,0.07280992,103.62,103.56,50.7415]
[1744166655343,9.73240992,103.62,103.56,50.7415]
[1744166655850,0.07280992,103.62,103.53,49.62]
[1744166656051,4.5628,103.65,103.53,81.78986735]
[1744166656250,0.07179671,103.59,103.53,49.62]
[1744166656445,0.07179671,103.59,103.54,32.16986735]
[1744166656842,0.07179671,103.59,103.56,9.6641]
[1744166657046,0.07179671,103.59,103.53,32.16986735]
[1744166657452,0.07179671,103.59,103.54,49.64]
[1744166657844,0.07179671,103.59,103.56,9.664]
[1744166658452,0.07179671,103.59,103.57,9.6638]
[1744166658657,9.73369671,103.59,103.54,49.64]
[1744166659057,0.07179671,103.59,103.54,49.64]
[1744166659947,0.07179671,103.59,103.57,9.6632]
[1744166660150,0.07179671,103.59,103.54,49.64]
[1744166660450,9.73419671,103.59,103.54,49.64]
[1744166660647,9.73419671,103.59,103.56,9.6642]
[1744166661152,0.07179671,103.59,103.56,9.6642]
[1744166661348,0.07179671,103.59,103.56,9.664]
[1744166661652,0.07179671,103.59,103.54,49.64]
[1744166662349,9.73409671,103.59,103.54,49.64]
[1744166662555,0.07179671,103.59,103.54,49.64]
[1744166662858,9.73419671,103.59,103.54,49.64]
[1744166663056,9.73419671,103.59,103.55,9.6648]
[1744166663458,9.73419671,103.59,103.54,49.64]
[1744166663656,9.73419671,103.59,103.56,9.6642]
[1744166663957,0.07179671,103.59,103.54,49.64]
[1744166664159,0.07179671,103.59,103.54,59.3061]
[1744166664347,2.38259671,103.59,103.54,59.3061]
[1744166664547,9.6633,103.58,103.54,59.3061]
[1744166664761,9.6633,103.58,103.54,49.64]
[1744166665452,9.6633,103.58,103.55,9.6652]
[1744166665652,12.04469671,103.59,103.54,49.64]
[1744166665848,0.07179671,103.59,103.54,69.79738849]
[1744166666363,0.07179671,103.59,103.54,49.64]
[1744166666547,0.07179671,103.59,103.54,69.79738849]
[1744166666748,0.07179671,103.59,103.56,9.6641]
[1744166666949,0.07179671,103.59,103.54,49.64]
[1744166667156,0.07179671,103.59,103.54,69.79738849]
[1744166667354,0.07179671,103.59,103.57,9.6636]
[1744166667554,0.07179671,103.59,103.54,49.64]
[1744166668363,9.73389671,103.59,103.54,49.64]
[1744166668563,9.73389671,103.59,103.56,9.6645]
[1744166669164,0.07179671,103.59,103.57,9.6634]
[1744166669464,0.07179671,103.59,103.54,49.64]
[1744166669857,9.73369671,103.59,103.54,49.64]
[1744166670165,0.07179671,103.59,103.54,49.64]
[1744166670853,9.6642,103.57,103.54,59.3061]
[1744166671057,4.6872,103.6,103.54,49.64]
[1744166671360,0.06616505,103.57,103.54,49.64]
[1744166671550,9.72996505,103.57,103.54,59.306]
[1744166672164,0.06616505,103.57,103.54,49.64]
[1744166673266,0.06616505,103.57,103.55,9.6651]
[1744166673460,0.06616505,103.57,103.54,49.64]
[1744166676363,0.06616505,103.57,103.54,81.87649099]
[1744166677070,0.06616505,103.57,103.55,32.23649099]
[1744166677462,0.06616505,103.57,103.56,9.6647]
[1744166683568,6.505e-05,103.57,103.56,9.6647]
[1744166683777,4.6308,103.63,103.6,9.6603]
[1744166684175,14.289,103.63,103.6,9.6603]
[1744166684378,2.4266,103.63,103.58,49.58]
[1744166684876,0.06467868,103.62,103.61,9.66]
[1744166686879,0.06467868,103.62,103.61,59.24]
[1744166687771,51.8227,103.69,103.61,81.81649099]
[1744166688580,51.8227,103.69,103.64,9.6568]
[1744166688778,2.2627,103.69,103.64,49.56]
[1744166689078,0.07270464,103.68,103.65,0.06438695]
[1744166689378,0.07270464,103.68,103.65,20.17328292]
[1744166689877,0.07270464,103.68,103.65,0.06438695]
[1744166691373,20.10889597,103.67,103.65,0.06438695]
[1744166691571,22.47399597,103.67,103.65,0.06438695]
[1744166691778,2.3651,103.67,103.65,0.06438695]
[1744166691983,9.6554,103.66,103.65,0.06438695]
[1744166694382,9.6567,103.65,103.61,49.56]
[1744166694574,9.6567,103.65,103.62,9.659]
[1744166694784,9.6577,103.64,103.61,49.56]
[1744166695386,9.6577,103.64,103.61,49.62458321]
[1744166695387,0.06773263,103.64,103.61,49.62458321]
[1744166695689,0.06773263,103.64,103.61,0.06458321]
[1744166696588,9.6591,103.62,103.59,9.6613]
[1744166696890,12.07410902,103.61,103.58,28.35117991]
[1744166697189,12.07410902,103.6,103.58,28.35117991]
[1744166697383,2.2669,103.65,103.58,28.35117991]
[1744166697384,12.07410902,103.59,103.58,38.01397991]
[1744166698291,2.2669,103.65,103.59,20.10889597]
[1744166699190,9.6577,103.64,103.61,9.6596]
[1744166699490,0.06562371,103.63,103.62,10.5235434]
[1744166700584,0.06562371,103.63,103.62,20.18137886]
[1744166700988,0.06562371,103.63,103.62,20.18145063]
[1744166703893,54.6808,103.72,103.62,10.52235063]
[1744166704095,2.3459,103.7,103.63,30.6312466]
[1744166704294,2.3459,103.7,103.64,60.54235063]
[1744166704595,2.3459,103.7,103.65,29.55327628]
[1744166704897,2.3459,103.7,103.65,20.10889597]
[1744166705091,0.07124263,103.69,103.66,0.07394663]
[1744166705695,0.07124263,103.69,103.67,9.6543]
[1744166705994,9.72404263,103.69,103.66,0.07394663]
[1744166706203,0.07124263,103.69,103.66,0.07394663]
[1744166707390,9.654,103.68,103.66,0.07394663]
[1744166707794,0.07124263,103.69,103.66,0.07394663]
[1744166708598,0.07124263,103.69,103.67,9.654]
[1744166708796,0.07124263,103.69,103.66,0.07394663]
[1744166708987,0.07124263,103.69,103.66,20.1828426]
[1744166709188,0.07124263,103.69,103.67,50.0]
[1744166710896,0.07124263,103.69,103.68,9.6535]
[1744166712199,20.10889597,103.76,103.68,20.10889597]
[1744166712409,4.5448,103.75,103.7,20.10889597]
[1744166712693,4.5448,103.75,103.7,70.10889597]
[1744166713397,14.1927,103.75,103.71,9.6501]
[1744166713600,0.07092706,103.74,103.71,9.71772592]
[1744166713904,0.07092706,103.74,103.71,0.06762592]
[1744166714092,9.6493,103.73,103.71,0.06762592]
[1744166714298,0.07092706,103.74,103.71,0.06762592]
[1744166714486,9.6498,103.72,103.71,0.06762592]
[1744166714687,0.07092706,103.74,103.71,0.06762592]
[1744166715200,9.6498,103.72,103.71,0.06762592]
[1744166715494,9.6498,103.72,103.7,50.0]
[1744166715996,0.07092706,103.74,103.68,9.653]
[1744166716197,54.5248,103.75,103.68,9.653]
[1744166716598,9.6511,103.71,103.7,0.06732931]
[1744166716898,0.07210566,103.73,103.7,0.06732931]
[1744166717099,9.6502,103.72,103.7,0.06732931]
[1744166718196,0.07210566,103.73,103.7,0.06732931]
[1744166718899,9.6503,103.72,103.7,0.06732931]
[1744166719299,0.07210566,103.73,103.7,0.06732931]
[1744166719499,9.6507,103.71,103.7,0.06732931]
[1744166720202,0.07210566,103.73,103.7,0.06732931]
[1744166720501,0.07210566,103.73,103.7,50.04732931]
[1744166720902,0.07210566,103.73,103.7,59.69842931]
[1744166721103,0.07210566,103.73,103.7,0.06732931]
[1744166721304,9.6498,103.72,103.7,0.06732931]
[1744166723702,9.6507,103.71,103.7,0.06732931]
[1744166723901,0.07210566,103.73,103.7,0.06732931]
[1744166724905,9.6504,103.72,103.7,0.06732931]
[1744166725406,9.72140566,103.73,103.7,9.71852931]
[1744166725601,0.07210566,103.73,103.7,49.58732931]
[1744166725806,0.07210566,103.73,103.7,69.69622528]
[1744166726107,0.07210566,103.73,103.72,9.6498]
[1744166727406,0.07210566,103.73,103.72,29.75869597]
[1744166728203,0.07210566,103.73,103.71,9.6502]
[1744166728406,0.07210566,103.73,103.7,69.69622528]
[1744166728701,0.07210566,103.73,103.72,9.6498]
[1744166729299,9.6503,103.72,103.7,49.58732931]
[1744166729497,9.6503,103.72,103.7,0.06732931]
[1744166729699,0.07210566,103.73,103.7,0.06732931]
[1744166730305,9.6504,103.72,103.7,0.06732931]
[1744166732206,9.72150566,103.73,103.7,9.71892931]
[1744166732411,0.07210566,103.73,103.7,49.58732931]
[1744166732712,0.07210566,103.73,103.7,69.69622528]
[1744166732905,0.07210566,103.73,103.72,9.6498]
[1744166733911,0.07210566,103.73,103.71,9.6503]
[1744166734407,0.07210566,103.73,103.7,69.69622528]
[1744166734615,0.07210566,103.73,103.72,9.6498]
[1744166734809,0.07210566,103.73,103.72,29.75869597]
[1744166736811,20.10889597,103.83,103.72,29.74889597]
[1744166737014,20.10889597,103.81,103.73,49.52]
[1744166737214,9.6446,103.78,103.73,49.52]
[1744166737416,20.10889597,103.81,103.73,49.52]
[1744166737717,69.62889597,103.81,103.73,49.52]
[1744166737912,9.71010687,103.78,103.76,0.0724462]
[1744166738311,0.06540687,103.78,103.76,0.0724462]
[1744166738615,0.06540687,103.78,103.77,9.6451]
[1744166741111,0.06540687,103.78,103.76,49.5724462]
[1744166741314,0.06540687,103.78,103.73,49.5]
[1744166741517,9.6456,103.77,103.73,49.5]
[1744166742117,9.6456,103.77,103.74,9.6474]
[1744166742310,9.71000687,103.78,103.73,49.5]
[1744166742509,9.71000687,103.78,103.74,0.06091046]
[1744166742712,9.71000687,103.78,103.75,9.6465]
[1744166743020,0.06540687,103.78,103.74,0.06091046]
[1744166743218,0.06540687,103.78,103.77,9.6451]
[1744166744213,0.06540687,103.78,103.76,9.71593402]
[1744166744619,0.06540687,103.78,103.77,9.6451]
[1744166746517,0.06540687,103.78,103.76,9.71613402]
[1744166749417,0.06540687,103.78,103.77,9.6451]
[1744166750417,0.06540687,103.78,103.76,9.71603402]
[1744166751024,9.70970687,103.78,103.76,0.07043402]
[1744166751323,0.06540687,103.78,103.73,49.5]
[1744166751527,9.6483,103.74,103.72,1.92826841]
[1744166751826,4.6514,103.77,103.72,1.92826841]
[1744166752025,9.6488,103.73,103.72,1.92826841]
[1744166753428,9.72043134,103.74,103.71,0.07268429]
[1744166753725,0.07203134,103.74,103.71,0.07268429]
[1744166753921,9.6498,103.72,103.71,0.07268429]
[1744166754135,9.6498,103.72,103.67,49.44]
[1744166754715,9.6498,103.72,103.68,9.6527]
[1744166755328,0.06925976,103.71,103.68,32.10991724]
[1744166755525,4.6514,103.77,103.68,32.10991724]
[1744166755826,9.6465,103.76,103.69,32.10991724]
[1744166756028,9.6465,103.76,103.7,49.46]
[1744166756733,0.06538315,103.74,103.72,0.06238906]
[1744166757735,0.06538315,103.74,103.72,9.71128906]
[1744166758329,0.06538315,103.74,103.72,0.06238906]
[1744166760750,0.06538315,103.74,103.73,9.6488]
[1744166761031,0.06538315,103.74,103.73,59.1088]
[1744166761237,9.6436,103.79,103.75,9.6466]
[1744166761424,4.5905,103.8,103.73,49.46]
[1744166761829,9.6465,103.76,103.73,59.1084]
[1744166762028,4.5905,103.8,103.73,49.46]
[1744166762330,0.06996916,103.78,103.75,0.06248076]
[1744166762531,9.6451,103.77,103.75,0.06248076]
[1744166762930,0.06996916,103.78,103.77,9.6451]
[1744166763632,0.06996916,103.78,103.76,49.46]
[1744166764033,2.2133,103.81,103.76,81.56991724]
[1744166764237,49.46,103.86,103.78,32.10991724]
[1744166764238,4.8317,103.84,103.78,32.10991724]
[1744166764442,2.258,103.88,103.8,32.10991724]
[1744166764640,9.6364,103.87,103.81,49.46]
[1744166764940,7.0897,103.88,103.81,49.46]
[1744166764941,4.8317,103.88,103.81,49.46]
[1744166765244,273.35509785,103.92,103.86,32.10991724]
[1744166765437,273.35509785,103.92,103.87,49.44]
[1744166765634,0.06248127,103.9,103.87,49.44]
[1744166765941,0.06248127,103.9,103.88,0.07067953]
[1744166766144,266.31359785,103.92,103.88,32.18059677]
[1744166766436,266.31359785,103.92,103.9,32.10991724]
[1744166766639,266.31359785,103.92,103.9,49.44]
[1744166766837,266.31359785,103.92,103.88,32.18059677]
[1744166766838,266.31359785,103.92,103.88,0.07067953]
[1744166767136,2.3761,103.95,103.88,0.07067953]
[1744166767337,0.0735042,103.91,103.88,0.07067953]
[1744166767532,0.0735042,103.91,103.87,49.44]
[1744166767533,9.6336,103.9,103.87,49.44]
[1744166767741,0.0735042,103.91,103.88,0.06538202]
[1744166767937,9.6346,103.89,103.85,9.6377]
[1744166768137,49.44,103.93,103.83,49.44]
[1744166768438,9.6348,103.89,103.84,9.6381]
[1744166768744,9.6348,103.89,103.83,49.44]
[1744166769134,0.06427183,103.87,103.85,0.07235817]
[1744166769638,0.06427183,103.87,103.85,9.70935817]
[1744166769836,0.06427183,103.87,103.85,0.07235817]
[1744166770237,0.06427183,103.87,103.86,9.6368]
[1744166770437,0.06427183,103.87,103.86,59.0568]
[1744166770741,0.06427183,103.87,103.86,49.42]
[1744166770943,0.06427183,103.87,103.85,0.07235817]
[1744166772743,0.06427183,103.87,103.85,9.70965817]
[1744166773641,0.06427183,103.87,103.85,0.07235817]
[1744166774145,0.06427183,103.87,103.81,509.16]
[1744166774346,9.6378,103.85,103.81,9.641]